[Event "Panevezys Elite 2018"]
[Site "Panevezys"]
[Date "2018.06.29"]
[Round "1.4"]
[White "Krivonosov, Oleg"]
[Black "Grib, Roman"]
[Result "1/2-1/2"]
[ECO "A05"]
[WhiteElo "2399"]
[BlackElo "2445"]
[Annotator "ChessBase"]
[PlyCount "72"]
[EventDate "2018.06.29"]
[EventType "swiss"]
[EventRounds "9"]
[EventCountry "LTU"]
[SourceTitle "playchess.com"]
[Source "ChessBase"]
[SourceQuality "1"]
[TimeControl "40/5400+30:1800+30"]

1. Nf3 {[%emt 0:00:00]} Nf6 {[%emt 0:00:00]} 2. c4 {[%emt 0:00:00]} g6 {[%emt 0:00:00]} 3. Nc3 {[%emt 0:00:00]} d5 {[%emt 0:00:00]} 4. cxd5 {[%emt 0:00:00]} Nxd5 {[%emt 0:00:02]} 5. e4 {[%emt 0:00:10]} Nxc3 {[%emt 0:00:42]} 6. dxc3 {[%emt 0:00:11]} Qxd1+ {[%emt 0:00:43]} 7. Kxd1 {[%emt 0:00:07]} Nd7 {[%emt 0:08:50]} 8. Bc4 {[%emt 0:12:33]} Bg7 {[%emt 0:06:28]} 9. Kc2 {[%emt 0:05:20]} Nc5 {[%emt 0:06:17]} 10. Re1 {[%emt 0:08:14]} f5 {[%emt 0:06:26]} 11. Ng5 {[%emt 0:12:42]} h6 {[%emt 0:10:28]} 12. Be3 {[%emt 0:05:15]} hxg5 {[%emt 0:07:35]} 13. Bxc5 {[%emt 0:00:04]} Rxh2 {[%emt 0:09:04]} 14. exf5 {[%emt 0:09:07]} Bxf5+ {[%emt 0:01:02]} 15. Kb3 {[%emt 0:00:17]} Bf6 {[%emt 0:01:06]} 16. g3 {[%emt 0:04:43]} b6 {[%emt 0:06:22]} 17. Be3 {[%emt 0:01:41]} c6 {[%emt 0:02:21]} 18. a4 {[%emt 0:01:44]} O-O-O {[%emt 0:00:32]} 19. Rh1 {[%emt 0:03:03]} Rxh1 {[%emt 0:02:39]} 20. Ba6+ {[%emt 0:01:48]} Kc7 {[%emt 0:00:17]} 21. Rxh1 {[%emt 0:00:05]} Be4 {[%emt 0:03:44]} 22. Re1 {[%emt 0:01:09]} Bf3 {[%emt 0:04:45]} 23. Kc2 {[%emt 0:00:44]} Be4+ {[%emt 0:00:17]} 24. Kb3 {[%emt 0:00:09]} Bf5 {[%emt 0:07:30]} 25. Rh1 {[%emt 0:00:21]} Bg4 {[%emt 0:02:16]} 26. Kc2 {[%emt 0:00:50]} Rd5 {[%emt 0:01:45]} 27. Bc4 {[%emt 0:05:39]} Ra5 {[%emt 0:00:51]} 28. Bb3 {[%emt 0:00:44]} Bf5+ {[%emt 0:00:52]} 29. Kd2 {[%emt 0:00:31]} b5 {[%emt 0:00:40]} 30. Ra1 {[%emt 0:02:20]} g4 {[%emt 0:09:48]} 31. Ra3 {[%emt 0:04:40]} bxa4 {[%emt 0:01:30]} 32. Rxa4 {[%emt 0:01:05]} Rb5 {[%emt 0:00:34]} 33. Rxa7+ {[%emt 0:01:17]} Kb8 {[%emt 0:00:02]} 34. Ra3 {[%emt 0:00:26]} Be5 {[%emt 0:00:26]} 35. Kc1 {[%emt 0:02:26]} Bd6 {[%emt 0:00:18]} 36. Bc4 {[%emt 0:00:13]} Bxa3 {[%emt 0:00:24]} 1/2-1/2

[Event "Panevezys Elite 2018"]
[Site "Panevezys"]
[Date "2018.06.29"]
[Round "1.5"]
[White "Stremavicius, Titas"]
[Black "Van Osch, Mees"]
[Result "1-0"]
[ECO "E70"]
[WhiteElo "2448"]
[BlackElo "2324"]
[Annotator "ChessBase"]
[PlyCount "83"]
[EventDate "2018.06.29"]
[EventType "swiss"]
[EventRounds "9"]
[EventCountry "LTU"]
[SourceTitle "playchess.com"]
[Source "ChessBase"]
[SourceQuality "1"]
[TimeControl "40/5400+30:1800+30"]

1. d4 {[%emt 0:00:00]} Nf6 {[%emt 0:00:00]} 2. c4 {[%emt 0:00:00]} g6 {[%emt 0:00:00]} 3. Nc3 {[%emt 0:00:00]} Bg7 {[%emt 0:00:00]} 4. e4 {[%emt 0:00:06]} d6 {[%emt 0:00:00]} 5. Bd3 {[%emt 0:00:09]} O-O {[%emt 0:00:00]} 6. Nge2 {[%emt 0:00:08]} Nc6 {[%emt 0:00:32]} 7. O-O {[%emt 0:00:24]} Nd7 {[%emt 0:00:10]} 8. Bc2 {[%emt 0:08:49]} e5 {[%emt 0:05:51]} 9. d5 {[%emt 0:03:42]} Nd4 {[%emt 0:00:03]} 10. Nxd4 {[%emt 0:00:09]} exd4 {[%emt 0:00:03]} 11. Ne2 {[%emt 0:01:52]} Qf6 {[%emt 0:11:21]} 12. Rb1 {[%emt 0:03:32]} a5 {[%emt 0:12:31]} 13. b3 {[%emt 0:03:12]} c5 {[%emt 0:01:10]} 14. f4 {[%emt 0:03:20]} Qh4 {[%emt 0:07:24]} 15. h3 {[%emt 0:06:03]} f5 {[%emt 0:04:39]} 16. exf5 {[%emt 0:01:50]} gxf5 {[%emt 0:02:04]} 17. Qe1 {[%emt 0:02:20]} Qh6 {[%emt 0:18:24]} 18. Ng3 {[%emt 0:04:19]} Nb8 {[%emt 0:00:33]} 19. Kh2 {[%emt 0:08:27]} Bd7 {[%emt 0:07:08]} 20. Bd2 {[%emt 0:05:20]} b6 {[%emt 0:04:22]} 21. Qe7 {[%emt 0:01:46]} Qg6 {[%emt 0:06:37]} 22. Rbe1 {[%emt 0:02:53]} Bf6 {[%emt 0:01:09]} 23. Qxd6 {[%emt 0:03:36]} Bh4 {[%emt 0:02:06]} 24. Qxg6+ {[%emt 0:00:06]} hxg6 {[%emt 0:00:05]} 25. Re5 {[%emt 0:01:55]} Na6 {[%emt 0:01:15]} 26. a3 {[%emt 0:01:00]} Nc7 {[%emt 0:02:15]} 27. Ne2 {[%emt 0:03:29]} Ne8 {[%emt 0:03:51]} 28. a4 {[%emt 0:02:27]} Nd6 {[%emt 0:01:29]} 29. Ng1 {[%emt 0:00:38]} Bf6 {[%emt 0:07:09]} 30. Nf3 {[%emt 0:05:12]} Ne4 {[%emt 0:00:04]} 31. Bc1 {[%emt 0:05:12]} Rae8 {[%emt 0:01:26]} 32. Re1 {[%emt 0:01:26]} Kg7 {[%emt 0:00:35]} 33. Bxe4 {[%emt 0:01:35]} fxe4 {[%emt 0:00:19]} 34. R5xe4 {[%emt 0:00:09]} Rxe4 {[%emt 0:00:11]} 35. Rxe4 {[%emt 0:00:03]} Bf5 {[%emt 0:00:02]} 36. Re2 {[%emt 0:00:43]} d3 {[%emt 0:02:30]} 37. Re1 {[%emt 0:00:48]} Bc3 {[%emt 0:00:35]} 38. Bd2 {[%emt 0:00:19]} Bf6 {[%emt 0:00:27]} 39. g4 {[%emt 0:00:53]} Bc8 {[%emt 0:00:10]} 40. Re3 {[%emt 0:00:31]} Bd7 {[%emt 0:00:59]} 41. Rxd3 {[%emt 0:30:35]} Re8 {[%emt 0:01:14]} 42. Bc3 {[%emt 0:00:00]} 1-0

[Event "Panevezys Elite 2018"]
[Site "Panevezys"]
[Date "2018.06.29"]
[Round "1.6"]
[White "Maryasin, Boris"]
[Black "Priyanka Nutakki"]
[Result "0-1"]
[ECO "C00"]
[WhiteElo "2304"]
[BlackElo "2180"]
[Annotator "ChessBase"]
[PlyCount "74"]
[EventDate "2018.06.29"]
[EventType "swiss"]
[EventRounds "9"]
[EventCountry "LTU"]
[SourceTitle "playchess.com"]
[Source "ChessBase"]
[SourceQuality "1"]
[TimeControl "40/5400+30:1800+30"]

1. e4 {[%emt 0:00:00]} e6 {[%emt 0:00:00]} 2. d4 {[%emt 0:00:03]} d5 {[%emt 0:00:07]} 3. Bd3 {[%emt 0:00:35]} dxe4 {[%emt 0:01:25]} 4. Bxe4 {[%emt 0:00:07]} Nf6 {[%emt 0:00:05]} 5. Bf3 {[%emt 0:00:12]} Bd6 {[%emt 0:04:11]} 6. Ne2 {[%emt 0:01:19]} O-O {[%emt 0:00:21]} 7. Nbc3 {[%emt 0:01:00]} c6 {[%emt 0:05:34]} 8. Bg5 {[%emt 0:02:19]} Nbd7 {[%emt 0:04:54]} 9. Qd2 {[%emt 0:00:35]} Be7 {[%emt 0:04:44]} 10. O-O {[%emt 0:04:10]} e5 {[%emt 0:06:57]} 11. Rad1 {[%emt 0:02:03]} exd4 {[%emt 0:08:05]} 12. Nxd4 {[%emt 0:02:11]} Ne5 {[%emt 0:00:55]} 13. Be2 {[%emt 0:01:40]} h6 {[%emt 0:16:14]} 14. Qe3 {[%emt 0:04:33]} Nfg4 {[%emt 0:15:16]} 15. Bxg4 {[%emt 0:01:16]} Bxg5 {[%emt 0:00:05]} 16. Qxe5 {[%emt 0:02:09]} Bxg4 {[%emt 0:00:08]} 17. Nxc6 {[%emt 0:08:31]} Qb6 {[%emt 0:03:11]} 18. Rd4 {[%emt 0:01:17]} Bf6 {[%emt 0:01:36]} 19. Qg3 {[%emt 0:04:06]} Bxd4 {[%emt 0:02:38]} 20. Nd5 {[%emt 0:00:20]} Qxb2 {[%emt 0:04:37]} 21. Nce7+ {[%emt 0:00:13]} Kh8 {[%emt 0:00:05]} 22. Qxg4 {[%emt 0:00:03]} Bf6 {[%emt 0:02:31]} 23. Nf5 {[%emt 0:00:09]} Rad8 {[%emt 0:01:20]} 24. c4 {[%emt 0:00:15]} b5 {[%emt 0:01:32]} 25. Qh5 {[%emt 0:07:34]} Qe5 {[%emt 0:04:01]} 26. f4 {[%emt 0:00:21]} Qe6 {[%emt 0:00:12]} 27. Kh1 {[%emt 0:02:19]} bxc4 {[%emt 0:02:52]} 28. Nde3 {[%emt 0:00:13]} Bd4 {[%emt 0:01:24]} 29. Qg4 {[%emt 0:01:56]} g6 {[%emt 0:02:30]} 30. Nxd4 {[%emt 0:00:47]} Qxg4 {[%emt 0:00:18]} 31. Nxg4 {[%emt 0:00:02]} Rxd4 {[%emt 0:00:07]} 32. Ne5 {[%emt 0:00:08]} Kg7 {[%emt 0:00:22]} 33. g3 {[%emt 0:00:21]} Rfd8 {[%emt 0:00:10]} 34. Kg2 {[%emt 0:00:11]} Rd2+ {[%emt 0:00:19]} 35. Kf3 {[%emt 0:00:02]} c3 {[%emt 0:00:24]} 36. Rc1 {[%emt 0:00:19]} c2 {[%emt 0:00:08]} 37. h4 {[%emt 0:01:02]} Rh2 {[%emt 0:00:57]} 0-1

[Event "Panevezys Elite 2018"]
[Site "Panevezys"]
[Date "2018.06.29"]
[Round "1.7"]
[White "Berzina, Ilze"]
[Black "Brazdzionis, Andrius"]
[Result "0-1"]
[ECO "B09"]
[WhiteElo "2173"]
[BlackElo "2252"]
[Annotator "ChessBase"]
[PlyCount "72"]
[EventDate "2018.06.29"]
[EventType "swiss"]
[EventRounds "9"]
[EventCountry "LTU"]
[SourceTitle "playchess.com"]
[Source "ChessBase"]
[SourceQuality "1"]
[TimeControl "40/5400+30:1800+30"]

1. e4 {[%emt 0:00:00]} d6 {[%emt 0:00:11]} 2. d4 {[%emt 0:00:00]} Nf6 {[%emt 0:00:08]} 3. Nc3 {[%emt 0:00:03]} g6 {[%emt 0:00:08]} 4. f4 {[%emt 0:00:26]} Bg7 {[%emt 0:00:06]} 5. Nf3 {[%emt 0:00:27]} O-O {[%emt 0:00:08]} 6. Bd3 {[%emt 0:00:35]} Nc6 {[%emt 0:00:47]} 7. d5 {[%emt 0:12:15]} Nb4 {[%emt 0:01:33]} 8. O-O {[%emt 0:01:23]} c6 {[%emt 0:12:19]} 9. dxc6 {[%emt 0:02:14]} Qb6+ {[%emt 0:00:17]} 10. Kh1 {[%emt 0:00:13]} bxc6 {[%emt 0:01:12]} 11. Qe2 {[%emt 0:05:58]} Nxd3 {[%emt 0:03:44]} 12. cxd3 {[%emt 0:00:09]} Rb8 {[%emt 0:04:27]} 13. Bd2 {[%emt 0:03:25]} Ba6 {[%emt 0:01:27]} 14. b3 {[%emt 0:03:19]} Nd7 {[%emt 0:04:18]} 15. Rad1 {[%emt 0:08:26]} Nc5 {[%emt 0:01:38]} 16. Be1 {[%emt 0:02:35]} Ne6 {[%emt 0:07:11]} 17. Nh4 {[%emt 0:20:18]} Nd4 {[%emt 0:02:46]} 18. Qg4 {[%emt 0:03:18]} f5 {[%emt 0:00:38]} 19. exf5 {[%emt 0:02:17]} Nxf5 {[%emt 0:00:17]} 20. Nxf5 {[%emt 0:00:16]} Rxf5 {[%emt 0:00:28]} 21. Ne4 {[%emt 0:01:39]} Rbf8 {[%emt 0:07:46]} 22. Bh4 {[%emt 0:05:49]} Qc7 {[%emt 0:01:14]} 23. Bg5 {[%emt 0:07:42]} e5 {[%emt 0:07:05]} 24. Rf3 {[%emt 0:08:50]} h6 {[%emt 0:20:19]} 25. Bxh6 {[%emt 0:00:09]} Bxh6 {[%emt 0:00:04]} 26. Qxg6+ {[%emt 0:00:06]} Qg7 {[%emt 0:00:25]} 27. Qe6+ {[%emt 0:05:15]} Kh7 {[%emt 0:00:22]} 28. Rg3 {[%emt 0:04:45]} Qf7 {[%emt 0:00:53]} 29. Qxd6 {[%emt 0:00:11]} Rh5 {[%emt 0:07:12]} 30. Qxc6 {[%emt 0:00:36]} Bxf4 {[%emt 0:02:45]} 31. Qxa6 {[%emt 0:00:22]} Rxh2+ {[%emt 0:01:01]} 32. Kg1 {[%emt 0:00:08]} Rh6 {[%emt 0:01:48]} 33. Qb5 {[%emt 0:01:06]} Qh5 {[%emt 0:01:24]} 34. Rf3 {[%emt 0:00:45]} Be3+ {[%emt 0:00:46]} 35. Kf1 {[%emt 0:00:26]} Rxf3+ {[%emt 0:00:04]} 36. Ke2 {[%emt 0:00:10]} Rf2+ {[%emt 0:00:17]} 0-1

[Event "Panevezys Elite 2018"]
[Site "Panevezys"]
[Date "2018.06.29"]
[Round "1.8"]
[White "Vovk, Ilja"]
[Black "Tsiganova, Monika"]
[Result "1-0"]
[ECO "A05"]
[WhiteElo "2273"]
[BlackElo "2131"]
[Annotator "ChessBase"]
[PlyCount "69"]
[EventDate "2018.06.29"]
[EventType "swiss"]
[EventRounds "9"]
[EventCountry "LTU"]
[SourceTitle "playchess.com"]
[Source "ChessBase"]
[SourceQuality "1"]
[TimeControl "40/5400+30:1800+30"]

1. Nf3 {[%emt 0:00:00]} Nf6 {[%emt 0:00:00]} 2. g3 {[%emt 0:00:00]} g6 {[%emt 0:00:22]} 3. Bg2 {[%emt 0:00:00]} Bg7 {[%emt 0:00:06]} 4. O-O {[%emt 0:00:00]} O-O {[%emt 0:00:20]} 5. d3 {[%emt 0:00:00]} d5 {[%emt 0:04:18]} 6. Nbd2 {[%emt 0:00:08]} c5 {[%emt 0:01:32]} 7. e4 {[%emt 0:00:10]} Nc6 {[%emt 0:01:55]} 8. exd5 {[%emt 0:00:14]} Nxd5 {[%emt 0:00:12]} 9. Re1 {[%emt 0:00:10]} e5 {[%emt 0:11:43]} 10. a3 {[%emt 0:00:19]} Be6 {[%emt 0:03:03]} 11. Rb1 {[%emt 0:01:23]} h6 {[%emt 0:03:56]} 12. Ne4 {[%emt 0:12:36]} b6 {[%emt 0:06:45]} 13. c4 {[%emt 0:00:40]} Nde7 {[%emt 0:01:56]} 14. b4 {[%emt 0:01:27]} f5 {[%emt 0:02:26]} 15. Ned2 {[%emt 0:05:35]} Qxd3 {[%emt 0:02:37]} 16. b5 {[%emt 0:03:01]} e4 {[%emt 0:28:05]} 17. bxc6 {[%emt 0:02:31]} Rad8 {[%emt 0:05:09]} 18. Qa4 {[%emt 0:20:36]} Qd6 {[%emt 0:01:26]} 19. Bb2 {[%emt 0:03:29]} Nxc6 {[%emt 0:00:47]} 20. Nh4 {[%emt 0:14:14]} g5 {[%emt 0:13:53]} 21. Bxg7 {[%emt 0:08:27]} Kxg7 {[%emt 0:01:17]} 22. Nxf5+ {[%emt 0:14:22]} Bxf5 {[%emt 0:00:08]} 23. Nxe4 {[%emt 0:00:20]} Qg6 {[%emt 0:00:24]} 24. Rbc1 {[%emt 0:07:58]} Rf7 {[%emt 0:06:56]} 25. Nxg5 {[%emt 0:01:11]} Qxg5 {[%emt 0:00:30]} 26. Qxc6 {[%emt 0:00:49]} Rd2 {[%emt 0:00:16]} 27. Bd5 {[%emt 0:01:07]} Bd7 {[%emt 0:00:22]} 28. Qd6 {[%emt 0:00:33]} Qf5 {[%emt 0:00:26]} 29. Qe5+ {[%emt 0:01:02]} Qxe5 {[%emt 0:00:13]} 30. Rxe5 {[%emt 0:00:01]} Kf6 {[%emt 0:01:35]} 31. Rce1 {[%emt 0:00:56]} Rg7 {[%emt 0:00:02]} 32. R5e4 {[%emt 0:00:45]} Bf5 {[%emt 0:00:08]} 33. Rf4 {[%emt 0:00:28]} Kg6 {[%emt 0:00:06]} 34. Re5 {[%emt 0:00:52]} Bd7 {[%emt 0:00:17]} 35. Be4+ {[%emt 0:00:08]} 1-0

[Event "Panevezys Elite 2018"]
[Site "Panevezys"]
[Date "2018.06.29"]
[Round "1.9"]
[White "Stasans, Aivars"]
[Black "Ratsma, Midas"]
[Result "1/2-1/2"]
[ECO "B09"]
[WhiteElo "2071"]
[BlackElo "2253"]
[Annotator "ChessBase"]
[PlyCount "62"]
[EventDate "2018.06.29"]
[EventType "swiss"]
[EventRounds "9"]
[EventCountry "LTU"]
[SourceTitle "playchess.com"]
[Source "ChessBase"]
[SourceQuality "1"]
[TimeControl "40/5400+30:1800+30"]

1. e4 {[%emt 0:00:00]} g6 {[%emt 0:00:00]} 2. d4 {[%emt 0:00:00]} Bg7 {[%emt 0:00:00]} 3. Nc3 {[%emt 0:01:10]} d6 {[%emt 0:00:05]} 4. f4 {[%emt 0:03:50]} Nf6 {[%emt 0:01:57]} 5. Nf3 {[%emt 0:01:10]} O-O {[%emt 0:00:28]} 6. Bd3 {[%emt 0:02:30]} Na6 {[%emt 0:01:57]} 7. O-O {[%emt 0:02:46]} e5 {[%emt 0:03:08]} 8. dxe5 {[%emt 0:16:44]} dxe5 {[%emt 0:00:05]} 9. Bxa6 {[%emt 0:00:20]} bxa6 {[%emt 0:08:21]} 10. Nxe5 {[%emt 0:08:13]} Bb7 {[%emt 0:10:21]} 11. Qe2 {[%emt 0:02:19]} Qe7 {[%emt 0:02:09]} 12. Qc4 {[%emt 0:01:49]} Ne8 {[%emt 0:10:53]} 13. Be3 {[%emt 0:09:23]} Nd6 {[%emt 0:07:22]} 14. Qa4 {[%emt 0:05:30]} f6 {[%emt 0:05:25]} 15. Nd7 {[%emt 0:05:25]} Rfe8 {[%emt 0:03:29]} 16. e5 {[%emt 0:08:13]} Nb5 {[%emt 0:14:40]} 17. Nc5 {[%emt 0:13:53]} Nxc3 {[%emt 0:02:53]} 18. bxc3 {[%emt 0:00:06]} Bd5 {[%emt 0:02:02]} 19. Rad1 {[%emt 0:01:42]} Rad8 {[%emt 0:02:03]} 20. c4 {[%emt 0:00:44]} Bf7 {[%emt 0:02:46]} 21. Rxd8 {[%emt 0:00:36]} Rxd8 {[%emt 0:01:11]} 22. Nd3 {[%emt 0:03:16]} fxe5 {[%emt 0:01:48]} 23. Nxe5 {[%emt 0:02:11]} Bxe5 {[%emt 0:01:23]} 24. fxe5 {[%emt 0:00:01]} Qxe5 {[%emt 0:00:21]} 25. Bxa7 {[%emt 0:00:16]} c5 {[%emt 0:05:32]} 26. Qa5 {[%emt 0:04:00]} Qd4+ {[%emt 0:01:14]} 27. Kh1 {[%emt 0:00:24]} Bxc4 {[%emt 0:01:46]} 28. Bxc5 {[%emt 0:01:08]} Qd5 {[%emt 0:01:16]} 29. Re1 {[%emt 0:02:08]} Rc8 {[%emt 0:03:05]} 30. Bb4 {[%emt 0:00:40]} Bb5 {[%emt 0:03:57]} 31. Qb6 {[%emt 0:02:43]} Bc6 {[%emt 0:01:42]} 1/2-1/2

[Event "Panevezys Elite 2018"]
[Site "Panevezys"]
[Date "2018.06.29"]
[Round "1.10"]
[White "Parligras, Cosmin"]
[Black "Bekasovs, Rihards"]
[Result "1/2-1/2"]
[ECO "D79"]
[WhiteElo "2231"]
[BlackElo "2052"]
[Annotator "ChessBase"]
[PlyCount "121"]
[EventDate "2018.06.29"]
[EventType "swiss"]
[EventRounds "9"]
[EventCountry "LTU"]
[SourceTitle "playchess.com"]
[Source "ChessBase"]
[SourceQuality "1"]
[TimeControl "40/5400+30:1800+30"]

1. g3 {[%emt 0:00:40]} Nf6 {[%emt 0:00:36]} 2. Bg2 {[%emt 0:00:23]} d5 {[%emt 0:00:18]} 3. Nf3 {[%emt 0:00:36]} g6 {[%emt 0:01:19]} 4. O-O {[%emt 0:00:18]} Bg7 {[%emt 0:00:13]} 5. d4 {[%emt 0:00:07]} O-O {[%emt 0:01:52]} 6. c4 {[%emt 0:00:05]} c6 {[%emt 0:00:38]} 7. cxd5 {[%emt 0:00:05]} cxd5 {[%emt 0:00:05]} 8. Ne5 {[%emt 0:00:41]} Nc6 {[%emt 0:00:18]} 9. Nc3 {[%emt 0:00:53]} e6 {[%emt 0:05:02]} 10. Nxc6 {[%emt 0:02:01]} bxc6 {[%emt 0:00:02]} 11. Bf4 {[%emt 0:00:10]} Nd7 {[%emt 0:03:21]} 12. Na4 {[%emt 0:00:12]} e5 {[%emt 0:01:05]} 13. dxe5 {[%emt 0:00:29]} Nxe5 {[%emt 0:00:57]} 14. Rc1 {[%emt 0:00:17]} Bd7 {[%emt 0:25:33]} 15. b3 {[%emt 0:02:00]} Qe7 {[%emt 0:01:22]} 16. Qd2 {[%emt 0:03:30]} Rfd8 {[%emt 0:07:09]} 17. Bg5 {[%emt 0:07:30]} f6 {[%emt 0:04:35]} 18. Be3 {[%emt 0:00:22]} Bf5 {[%emt 0:05:29]} 19. Bc5 {[%emt 0:02:09]} Qe6 {[%emt 0:04:02]} 20. Bd4 {[%emt 0:03:02]} Nf7 {[%emt 0:09:55]} 21. Rc3 {[%emt 0:04:43]} Ng5 {[%emt 0:05:41]} 22. Rfc1 {[%emt 0:01:11]} Rd6 {[%emt 0:03:07]} 23. Nc5 {[%emt 0:03:15]} Qf7 {[%emt 0:01:11]} 24. h4 {[%emt 0:06:13]} Ne6 {[%emt 0:02:46]} 25. Nxe6 {[%emt 0:00:30]} Qxe6 {[%emt 0:00:02]} 26. Be3 {[%emt 0:07:13]} Bh3 {[%emt 0:14:54]} 27. Bf4 {[%emt 0:02:48]} Bxg2 {[%emt 0:00:17]} 28. Kxg2 {[%emt 0:00:08]} Rdd8 {[%emt 0:00:46]} 29. Rxc6 {[%emt 0:00:20]} Qe4+ {[%emt 0:00:10]} 30. Kg1 {[%emt 0:01:14]} Re8 {[%emt 0:00:50]} 31. R1c2 {[%emt 0:00:29]} f5 {[%emt 0:00:26]} 32. f3 {[%emt 0:15:03]} Qd4+ {[%emt 0:00:18]} 33. e3 {[%emt 0:00:08]} Qxd2 {[%emt 0:00:30]} 34. Rxd2 {[%emt 0:00:06]} Rac8 {[%emt 0:00:59]} 35. Rxc8 Rxc8 36. Kf2 {[%emt 0:02:35]} Kf7 {[%emt 0:00:15]} 37. Ke2 {[%emt 0:00:34]} Ke6 {[%emt 0:00:01]} 38. Kd1 {[%emt 0:00:47]} d4 {[%emt 0:02:21]} 39. exd4 {[%emt 0:00:22]} Kd5 {[%emt 0:00:04]} 40. Rc2 {[%emt 0:04:58]} Rxc2 {[%emt 0:00:28]} 41. Kxc2 {[%emt 0:30:06]} Bxd4 {[%emt 0:30:10]} 42. Kd3 {[%emt 0:00:21]} a6 {[%emt 0:00:13]} 43. Be3 {[%emt 0:01:09]} Be5 {[%emt 0:00:14]} 44. Bf2 {[%emt 0:02:25]} Bb2 {[%emt 0:01:53]} 45. b4 {[%emt 0:01:25]} Be5 {[%emt 0:00:26]} 46. a4 {[%emt 0:00:33]} Bd6 {[%emt 0:00:36]} 47. Kc3 {[%emt 0:01:05]} h5 {[%emt 0:00:27]} 48. Kb3 {[%emt 0:00:43]} Be7 {[%emt 0:00:22]} 49. b5 {[%emt 0:01:50]} axb5 {[%emt 0:00:14]} 50. axb5 {[%emt 0:00:06]} g5 {[%emt 0:00:43]} 51. b6 {[%emt 0:01:34]} Kc6 {[%emt 0:00:41]} 52. hxg5 {[%emt 0:01:01]} Bxg5 {[%emt 0:00:01]} 53. f4 {[%emt 0:00:14]} Be7 {[%emt 0:00:51]} 54. Kc4 {[%emt 0:00:08]} Bd6 {[%emt 0:00:09]} 55. Be3 {[%emt 0:02:06]} Be7 {[%emt 0:00:27]} 56. b7 {[%emt 0:03:30]} Kxb7 {[%emt 0:00:11]} 57. Kd5 {[%emt 0:00:06]} h4 {[%emt 0:00:31]} 58. Ke6 {[%emt 0:00:22]} Bd8 {[%emt 0:00:11]} 59. gxh4 {[%emt 0:00:17]} Bxh4 {[%emt 0:00:02]} 60. Kxf5 {[%emt 0:00:20]} Bg3 {[%emt 0:00:05]} 61. Ke4 1/2-1/2

[Event "Panevezys Elite 2018"]
[Site "Panevezys"]
[Date "2018.06.29"]
[Round "1.11"]
[White "Prigodin, Ruslan"]
[Black "Malinin, Yuri"]
[Result "1/2-1/2"]
[ECO "A40"]
[WhiteElo "2036"]
[BlackElo "2176"]
[Annotator "ChessBase"]
[PlyCount "69"]
[EventDate "2018.06.29"]
[EventType "swiss"]
[EventRounds "9"]
[EventCountry "LTU"]
[SourceTitle "playchess.com"]
[Source "ChessBase"]
[SourceQuality "1"]
[TimeControl "40/5400+30:1800+30"]

1. d4 {[%emt 0:00:00]} g6 {[%emt 0:00:31]} 2. Nf3 {[%emt 0:00:32]} Bg7 {[%emt 0:00:11]} 3. e4 {[%emt 0:00:50]} d6 {[%emt 0:00:11]} 4. Bd3 {[%emt 0:05:26]} e5 {[%emt 0:03:22]} 5. O-O {[%emt 0:04:27]} Nc6 {[%emt 0:06:46]} 6. Bb5 {[%emt 0:12:10]} Bd7 {[%emt 0:04:17]} 7. d5 {[%emt 0:08:54]} Nce7 {[%emt 0:03:20]} 8. Bxd7+ {[%emt 0:00:09]} Qxd7 {[%emt 0:00:14]} 9. c4 {[%emt 0:00:28]} f6 {[%emt 0:09:50]} 10. Nc3 {[%emt 0:02:44]} Nh6 {[%emt 0:08:15]} 11. b4 {[%emt 0:09:31]} O-O {[%emt 0:00:51]} 12. c5 {[%emt 0:03:49]} Nf7 {[%emt 0:03:40]} 13. Qb3 {[%emt 0:07:29]} Kh8 {[%emt 0:07:10]} 14. a4 {[%emt 0:03:13]} f5 {[%emt 0:02:30]} 15. Ng5 {[%emt 0:13:47]} fxe4 {[%emt 0:13:06]} 16. Ne6 {[%emt 0:01:21]} Rfe8 {[%emt 0:02:20]} 17. Nxe4 {[%emt 0:09:28]} Nf5 {[%emt 0:08:54]} 18. Bb2 {[%emt 0:01:37]} Nd4 {[%emt 0:05:15]} 19. Bxd4 {[%emt 0:01:15]} exd4 {[%emt 0:00:07]} 20. cxd6 {[%emt 0:01:30]} cxd6 {[%emt 0:00:45]} 21. Nxg7 {[%emt 0:03:47]} Kxg7 {[%emt 0:07:08]} 22. Qd3 {[%emt 0:00:29]} Qe7 {[%emt 0:01:57]} 23. Qxd4+ {[%emt 0:00:36]} Qe5 {[%emt 0:00:10]} 24. Rfd1 {[%emt 0:01:21]} Rac8 {[%emt 0:01:05]} 25. Qxe5+ {[%emt 0:02:28]} Rxe5 {[%emt 0:00:11]} 26. f3 {[%emt 0:00:13]} Rc2 {[%emt 0:03:34]} 27. Rac1 {[%emt 0:01:38]} Rxd5 {[%emt 0:00:24]} 28. Rxd5 {[%emt 0:01:34]} Rxc1+ {[%emt 0:00:21]} 29. Kf2 {[%emt 0:00:03]} Rc4 {[%emt 0:01:55]} 30. b5 {[%emt 0:02:28]} Rxa4 {[%emt 0:00:46]} 31. Nxd6 {[%emt 0:00:04]} Nxd6 {[%emt 0:01:00]} 32. Rxd6 {[%emt 0:00:02]} b6 {[%emt 0:01:02]} 33. Rd7+ {[%emt 0:00:07]} Kg8 {[%emt 0:00:09]} 34. Rd8+ {[%emt 0:01:54]} Kg7 {[%emt 0:00:14]} 35. Rd7+ {[%emt 0:00:06]} 1/2-1/2

[Event "Panevezys Elite 2018"]
[Site "Panevezys"]
[Date "2018.06.29"]
[Round "1.12"]
[White "Juksta, Karolis"]
[Black "Sinitsina, Anastassia"]
[Result "1-0"]
[ECO "A00"]
[WhiteElo "2187"]
[BlackElo "2101"]
[Annotator "ChessBase"]
[PlyCount "121"]
[EventDate "2018.06.29"]
[EventType "swiss"]
[EventRounds "9"]
[EventCountry "LTU"]
[SourceTitle "playchess.com"]
[Source "ChessBase"]
[SourceQuality "1"]
[TimeControl "40/5400+30:1800+30"]

1. d4 Nf6 2. c4 c5 3. d5 e6 4. Nc3 exd5 5. cxd5 d6 6. e4 g6 7. f4 Bg7 8. e5 Nfd7 9. Nb5 dxe5 10. Nd6+ Ke7 11. Nxc8+ Qxc8 12. Nf3 Re8 13. fxe5 Nxe5 14. Bb5 Nbd7 15. Nxe5 Bxe5 16. O-O a6 17. d6+ Kd8 18. Rxf7 axb5 19. Bg5+ Bf6 20. Bxf6+ Nxf6 21. Rxf6 Qc6 22. Qf1 Ra4 23. Rf7 Qxd6 24. Qxb5 Ree4 25. Qxb7 Reb4 26. Qf3 Rxb2 27. Rd1 Rd4 28. Qa8+ Rb8 29. Qa5+ Ke8 30. Rdf1 Rdb4 31. Rxh7 Qd4+ 32. Kh1 Rb1 33. Qa6 Rxf1+ 34. Qxf1 Qf6 35. Qe1+ Kf8 36. h3 Rb2 37. Qg3 Kg8 38. Rc7 Qf5 39. Kh2 Rb4 40. Rc6 g5 41. Qd6 Qf4+ 42. Qxf4 gxf4 43. Rxc5 Ra4 44. Rc2 Kg7 45. Kg1 Kg6 46. Kf2 Ra3 47. Ke1 Kg5 48. Rf2 Ra4 49. Kf1 Ra3 50. Ke1 Ra4 51. Kd1 Kh4 52. Rf3 Rxa2 53. Rxf4+ Kg5 54. Rg4+ Kf5 55. Ke1 Rb2 56. Kf1 Ra2 57. Kg1 Ra1+ 58. Kh2 Ra2 59. Rb4 Kg5 60. h4+ Kh5 61. Kh3 1-0